bitfinex-derivatives/quotes_ETHF0:USTF0_20241008
["timestamp","ask_amount","ask_price","bid_price","bid_amount"]
[1728404772045,0.41238,2426.1,2426.0,3.22]
[1728404772246,0.41241,2425.9,2425.8,3.63241]
[1728404772553,0.41241,2425.9,2425.8,3.22]
[1728404773145,0.41245,2425.7,2425.6,3.22]
[1728404773549,0.41245,2425.7,2425.6,3.63245]
[1728404773750,0.81252,2425.8,2425.7,0.41243]
[1728404774252,0.4001,2425.8,2425.6,3.22]
[1728404774450,0.81252,2425.8,2425.7,0.41243]
[1728404774645,3.2078,2425.9,2425.7,0.41243]
[1728404774646,3.2078,2425.9,2425.8,0.41242]
[1728404775055,3.2078,2425.9,2425.8,0.79832]
[1728404775354,3.2078,2425.9,2425.8,0.41242]
[1728404775355,3.6202,2425.9,2425.8,0.41242]
[1728404776753,0.4124,2425.9,2425.8,0.41242]
[1728404776950,1.85703,2426.1,2425.9,0.41239]
[1728404776951,0.41239,2426.0,2425.9,0.41239]
[1728404777150,0.41239,2426.0,2425.9,3.63239]
[1728404777544,0.8261,2426.1,2426.0,0.41238]
[1728404777545,0.4001,2426.1,2426.0,0.41238]
[1728404777749,3.2078,2426.6,2426.1,0.41237]
[1728404777953,0.4123,2426.5,2426.4,0.4123]
[1728404778154,0.3884,2426.6,2426.5,0.4123]
[1728404778155,0.8007,2426.6,2426.5,0.4123]
[1728404778453,0.41231,2426.5,2426.4,0.4123]
[1728404778657,0.41231,2426.5,2426.4,3.6323]
[1728404779158,0.3884,2426.6,2426.3,3.22]
[1728404779357,0.41233,2426.4,2426.3,3.63233]
[1728404781152,0.4123,2426.5,2426.4,0.4123]
[1728404781652,3.5962,2426.6,2426.4,3.22]
[1728404782054,0.4123,2426.5,2426.4,3.22]
[1728404782357,0.41231,2426.4,2426.3,3.63232]
[1728404783149,0.41235,2426.2,2426.1,3.63236]
[1728404783351,0.41235,2426.2,2426.1,3.22]
[1728404783552,0.41235,2426.2,2426.1,3.63237]
[1728404784248,0.41235,2426.2,2426.1,3.22]
[1728404784959,0.4124,2426.0,2425.9,3.22]
[1728404785456,0.4124,2426.0,2425.9,3.6324]
[1728404785848,0.4244,2426.1,2425.9,3.22]
[1728404786152,0.4244,2426.1,2426.0,3.63238]
[1728404786562,0.83677,2426.1,2426.0,3.63238]
[1728404786950,0.4244,2426.1,2426.0,3.63238]
[1728404787367,0.83677,2426.1,2426.0,3.63238]
[1728404788164,0.4244,2426.1,2426.0,3.63238]
[1728404788370,0.83677,2426.1,2426.0,3.63238]
[1728404790455,0.4244,2426.1,2425.9,3.22]
[1728404790653,0.41238,2426.0,2425.9,3.22]
[1728404790848,0.41238,2426.0,2425.9,3.6324]
[1728404791362,0.4124,2425.9,2425.8,0.4139]
[1728404791573,0.41242,2425.8,2425.7,3.22]
[1728404792063,0.41245,2425.6,2425.5,3.22]
[1728404792263,0.41245,2425.6,2425.5,3.63247]
[1728404792559,0.83075,2425.6,2425.5,3.63247]
[1728404792764,0.4183,2425.6,2425.5,3.63247]
[1728404793061,0.3977,2425.9,2425.5,3.22]
[1728404793258,0.3977,2425.9,2425.3,4.65295]
[1728404793259,0.41244,2425.7,2425.6,0.82134]
[1728404793661,0.41244,2425.7,2425.6,3.22]
[1728404793858,7.74264,2425.7,2425.6,3.22]
[1728404794065,7.3302,2425.7,2425.5,3.22]
[1728404794360,0.41245,2425.6,2425.5,3.22]
[1728404795658,0.41245,2425.6,2425.5,3.63247]
[1728404795858,0.41238,2426.1,2426.0,0.41237]
[1728404796061,0.41236,2426.2,2426.1,0.41235]
[1728404796260,0.3877,2426.3,2426.2,0.41235]
[1728404796563,0.80003,2426.3,2426.2,0.41235]
[1728404796753,0.3877,2426.3,2426.2,0.41235]
[1728404796961,3.2078,2426.6,2426.1,3.22]
[1728404797161,0.4123,2426.5,2426.4,3.22]
[1728404797561,4.5339,2426.5,2426.4,3.22]
[1728404801965,0.4123,2426.5,2426.4,3.22]
[1728404804463,0.4123,2426.5,2426.4,3.63231]
[1728404804870,0.4123,2426.5,2426.4,3.22]
[1728404806562,10.1216,2426.5,2426.0,3.22]
[1728404806770,0.41238,2426.1,2426.0,3.22]
[1728404806969,0.41238,2426.1,2426.0,3.63238]
[1728404808868,0.41238,2426.1,2426.0,3.22]
[1728404809478,0.41238,2426.1,2426.0,3.63238]
[1728404811268,0.41236,2426.2,2426.1,0.41235]
[1728404811570,0.41236,2426.2,2426.1,4.03525]
[1728404814369,0.41234,2426.3,2426.2,0.41233]
[1728404814675,0.41233,2426.4,2426.3,0.41233]
[1728404814878,0.41233,2426.4,2426.3,3.63233]
[1728404815577,3.78508172,2426.5,2426.3,3.22]
[1728404815784,3.78508172,2426.7,2426.4,4.1216]
[1728404815972,3.78508172,2426.9,2426.8,0.41225]
[1728404816276,3.78508172,2427.0,2426.9,0.41223]
[1728404816470,3.78508172,2427.1,2427.0,0.41221]
[1728404816774,7.81774926,2427.2,2426.8,3.22]
[1728404816976,7.81774926,2427.2,2427.1,0.4122]
[1728404816977,6.98454926,2427.2,2427.1,0.4122]
[1728404817172,3.2078,2427.2,2427.1,0.4122]
[1728404817372,4.18888926,2427.5,2427.1,4.12]
[1728404817570,0.41214,2427.5,2427.4,3.63214]
[1728404817774,0.41214,2427.5,2427.4,3.22]
[1728404818072,5.02206926,2427.6,2427.5,0.41213]
[1728404818275,3.77674926,2427.6,2427.5,0.41213]
[1728404818475,7.39664926,2427.7,2427.4,3.22]
[1728404818679,7.39664926,2427.7,2427.2,3.2078]
[1728404818680,3.6199,2427.7,2427.6,3.22]
[1728404819274,7.7391,2427.7,2427.6,3.22]
[1728404819480,3.6199,2427.7,2427.6,3.22]
[1728404820176,3.2078,2427.7,2427.6,3.63211]
[1728404820573,3.61989,2427.7,2427.6,3.22]
[1728404822180,0.41213,2427.5,2427.4,0.4139]
[1728404822775,0.41213,2427.5,2427.4,3.6339]
[1728404823573,0.41212,2427.6,2427.5,0.41212]
[1728404823773,0.41212,2427.6,2427.5,3.63212]
[1728404823974,3.6199,2427.7,2427.6,0.41211]
[1728404824583,3.6199,2427.7,2427.5,3.6169]
[1728404824974,3.6199,2427.7,2427.6,0.41211]
[1728404825176,0.418,2428.0,2427.9,0.41206]
[1728404825376,3.615,2428.3,2427.9,4.25013]
[1728404825577,3.2078,2428.6,2428.5,0.41196]
[1728404826175,0.41196,2428.5,2428.4,3.22]
[1728404826582,0.41197,2428.4,2428.3,3.22]
[1728404826877,0.41197,2428.4,2428.3,3.63199]
[1728404827386,0.41197,2428.4,2428.3,3.22]
[1728404828478,0.41201,2428.2,2428.1,3.22]
[1728404828693,3.2078,2428.2,2428.1,3.63203]
[1728404828983,3.61981,2428.2,2428.1,3.22]
[1728404831784,0.41204,2428.0,2427.9,3.6339]
[1728404832181,0.3994,2428.1,2427.7,3.22]
[1728404832383,0.41208,2427.8,2427.7,3.22]
[1728404834376,0.41208,2427.8,2427.7,3.63209]
[1728404835783,0.41208,2427.8,2427.7,3.22]
[1728404837884,0.41208,2427.8,2427.7,3.63209]
[1728404838487,0.41206,2428.0,2427.9,0.41204]
[1728404838683,0.41206,2428.0,2427.9,3.63204]
[1728404841488,0.41206,2428.0,2427.9,3.22]
[1728404841682,0.41206,2428.0,2427.9,3.63206]
[1728404842785,0.41206,2428.0,2427.9,3.22]
[1728404844584,0.41206,2428.0,2427.9,3.63206]
[1728404844889,0.41206,2428.0,2427.9,3.22]
[1728404845484,0.41206,2428.0,2427.9,3.63206]
[1728404845779,0.41206,2428.0,2427.9,3.22]
[1728404848886,0.41206,2428.0,2427.9,3.63206]
[1728404849088,4.23785,2428.2,2427.9,3.22]
[1728404849293,0.41203,2428.1,2428.0,0.41203]
[1728404849593,0.41203,2428.1,2428.0,3.63203]
[1728404849784,3.2078,2428.2,2428.0,3.22]
[1728404849986,0.41203,2428.1,2428.0,3.63203]
[1728404850496,3.2078,2428.2,2428.0,4.045]
[1728404850790,0.41201,2428.2,2428.1,0.41201]
[1728404851489,4.63473,2428.5,2428.1,13.3262]
[1728404851490,3.2078,2428.5,2428.1,13.3262]
[1728404851696,3.2078,2429.0,2428.8,0.41189]
[1728404851997,3.61967,2429.0,2428.9,3.22]
[1728404852385,3.2078,2429.0,2428.9,3.63189]
[1728404852584,1.02946,2429.6,2428.9,13.74869]
[1728404852789,0.41177,2429.6,2429.5,3.22]
[1728404853690,8.61009,2430.0,2429.5,3.22]
[1728404853691,4.80314,2430.0,2429.5,3.22]
[1728404853895,0.41177,2429.6,2429.5,3.22]
[1728404854490,5.14546,2429.6,2429.3,3.2078]
[1728404854691,0.41181,2429.4,2429.3,3.2078]
[1728404854886,0.41186,2429.1,2429.0,3.22]
[1728404855688,1.42029,2429.3,2429.0,3.22]
[1728404855899,1.42029,2429.3,2429.2,3.22]
[1728404855900,0.80252,2429.3,2429.2,3.22]
[1728404857193,0.3907,2429.3,2429.1,3.22]
[1728404857495,0.41184,2429.2,2429.1,3.22]
[1728404858301,0.41184,2429.2,2429.1,3.63186]
[1728404858593,0.41184,2429.2,2429.1,3.22]
[1728404858795,0.41184,2429.2,2429.1,3.63186]
[1728404858993,1.02953,2429.4,2429.3,0.41181]
[1728404858994,0.41181,2429.4,2429.3,0.41181]
[1728404859198,0.41181,2429.4,2429.2,3.63183]
[1728404859395,0.41181,2429.4,2429.3,3.61962]
[1728404859589,0.4118,2429.5,2429.3,4.03782]
[1728404859790,0.4118,2429.5,2429.4,3.22]
[1728404859990,0.4118,2429.5,2429.4,3.63181]
[1728404860186,0.4118,2429.5,2429.4,3.22]
[1728404861893,0.7944,2429.8,2429.4,3.6318]
[1728404862193,0.41175,2429.7,2429.6,3.22]
[1728404862392,0.41175,2429.7,2429.6,6.83957]
[1728404862592,0.41175,2429.7,2429.6,6.4278]
[1728404862891,0.41175,2429.7,2429.6,3.2078]
[1728404863197,0.4118,2429.5,2429.3,3.63181]
[1728404863399,1.02948,2429.6,2429.4,0.4118]
[1728404863693,1.02948,2429.6,2429.5,3.22]
[1728404863694,0.41177,2429.6,2429.5,3.22]
[1728404864501,0.41177,2429.6,2429.5,6.83959]
[1728404864690,0.7944,2429.8,2429.6,0.41177]
[1728404864997,1.20615,2429.8,2429.7,3.22]
[1728404865897,1.20615,2429.8,2429.7,3.63175]
[1728404866092,1.20615,2429.8,2429.7,3.22]
[1728404867797,0.7944,2429.8,2429.6,0.4128]
[1728404867999,0.41175,2429.7,2429.6,0.82457]
[1728404868192,0.41175,2429.7,2429.6,0.4128]
[1728404868399,0.41175,2429.7,2429.6,0.82457]
[1728404868601,0.7944,2429.8,2429.6,0.4128]
[1728404868795,0.41175,2429.7,2429.6,0.4128]
[1728404869095,0.41175,2429.7,2429.6,0.82457]
[1728404869800,0.41175,2429.7,2429.6,0.4128]
[1728404870001,0.41175,2429.7,2429.6,0.82457]
[1728404870500,0.41175,2429.7,2429.6,4.04457]
[1728404871001,0.7944,2429.8,2429.7,0.41175]
[1728404871002,1.20615,2429.8,2429.7,0.41175]
[1728404871296,0.3998,2429.8,2429.7,0.41175]
[1728404871497,1.02927,2430.0,2429.6,3.6328]
[1728404871498,0.41171,2430.0,2429.6,3.6328]
[1728404871697,0.41171,2430.0,2429.9,3.63172]
[1728404871698,0.4117,2430.0,2429.9,3.63172]
[1728404872100,0.4117,2430.0,2429.9,3.22]
[1728404873003,0.41172,2429.9,2429.8,3.2078]
[1728404873300,0.41172,2429.9,2429.8,3.61954]
[1728404874097,1.02921,2430.2,2429.8,3.2078]
[1728404874296,0.41172,2430.0,2429.9,0.41171]
[1728404874502,0.41172,2429.9,2429.8,3.61953]
[1728404874702,0.41171,2430.0,2429.9,0.41171]
[1728404874899,0.41169,2430.1,2430.0,3.22]
[1728404875104,0.41169,2430.1,2430.0,3.6317]
[1728404875603,0.41169,2430.1,2430.0,3.22]
[1728404876205,0.41168,2430.2,2430.1,0.41168]
[1728404876503,0.41168,2430.2,2430.1,3.61948]
[1728404877195,0.41168,2430.2,2430.1,3.2078]
[1728404877396,1.44254,2430.3,2430.0,3.22]
[1728404877603,0.41168,2430.2,2430.1,3.2078]
[1728404877801,0.41168,2430.2,2430.1,3.22]
[1728404880599,0.41168,2430.2,2430.0,3.22]
[1728404880908,4.52689,2430.1,2430.0,3.22]
[1728404881399,0.41169,2430.1,2430.0,3.22]
[1728404881600,0.41169,2430.1,2430.0,3.6317]
[1728404881806,0.41169,2430.1,2430.0,3.22]
[1728404883008,0.4134,2430.3,2430.0,3.22]
[1728404883198,0.41169,2430.2,2430.1,0.41168]
[1728404883399,0.4134,2430.3,2430.1,3.22]
[1728404883604,0.82507,2430.3,2430.2,0.41167]
[1728404883908,0.41167,2430.2,2430.1,6.4278]
[1728404884110,0.4134,2430.3,2430.1,3.22]
[1728404884304,0.41167,2430.2,2430.1,3.63168]
[1728404884809,0.41167,2430.2,2430.1,3.22]
[1728404885313,0.41169,2430.1,2430.0,3.22]
[1728404886205,0.41169,2430.1,2430.0,3.63169]
[1728404890014,0.41169,2430.1,2430.0,3.22]
[1728404890212,0.41169,2430.1,2430.0,3.6317]
[1728404890711,1.44254,2430.3,2430.0,3.22]
[1728404891007,0.41168,2430.2,2430.1,0.41168]
[1728404892005,0.41168,2430.2,2430.1,3.61948]
[1728404892210,0.82507,2430.3,2430.2,0.41167]
[1728404892415,0.82507,2430.3,2430.2,3.63167]
[1728404892617,0.82507,2430.3,2430.2,3.22]
[1728404893317,0.82507,2430.3,2430.2,3.63167]
[1728404893513,0.82507,2430.3,2430.2,3.22]
[1728404893711,0.82507,2430.3,2430.2,3.63167]
[1728404893907,0.4134,2430.3,2430.2,3.63167]
[1728404894215,1.02901,2430.6,2430.5,0.4116]
[1728404894216,0.41161,2430.6,2430.5,0.4116]
[1728404894416,0.41161,2430.6,2430.5,3.6316]
[1728404894604,0.41161,2430.6,2430.5,3.22]
[1728404894811,1.84727,2430.7,2430.4,3.22]
[1728404895010,0.41162,2430.5,2430.4,3.22]
[1728404895212,0.41162,2430.5,2430.4,3.63163]
[1728404895410,0.41162,2430.5,2430.4,3.22]
[1728404895915,0.41164,2430.4,2430.3,3.22]
[1728404896619,0.41164,2430.4,2430.3,3.63165]
[1728404896912,1.02901,2430.6,2430.3,3.22]
[1728404897113,1.02901,2430.6,2430.2,0.3953]
[1728404897114,0.4116,2430.6,2430.5,3.63162]
[1728404897509,1.2299,2430.7,2430.6,0.4116]
[1728404897914,0.8207,2430.7,2430.6,0.809]
[1728404898317,0.8207,2430.7,2430.6,0.3974]
[1728404898615,4.04074175,2430.7,2430.6,0.809]
[1728404898823,0.8207,2430.7,2430.6,0.3974]
[1728404899118,0.8207,2430.7,2430.6,0.809]
[1728404899525,0.4091,2430.7,2430.6,0.809]
[1728404899915,0.4116,2430.6,2430.5,3.63162]
[1728404900115,0.7966,2430.6,2430.5,3.22]
[1728404900813,0.385,2430.6,2430.5,3.63162]
[1728404901115,0.4116,2430.6,2430.5,3.63162]
[1728404901717,0.4116,2430.6,2430.5,3.22]
[1728404901923,0.4116,2430.6,2430.5,3.63162]
[1728404902115,0.4116,2430.6,2430.5,3.22]
[1728404903221,3.61938,2430.8,2430.7,0.41158]
[1728404903426,3.61938,2430.8,2430.7,3.63158]
[1728404904018,3.61938,2430.8,2430.7,3.22]
[1728404904220,4.02458,2430.8,2430.7,3.22]
[1728404904518,7.24462175,2430.8,2430.7,3.22]
[1728404904710,4.02458,2430.8,2430.7,3.22]
[1728404905313,4.42648,2430.8,2430.7,3.22]
[1728404905510,1.21868,2430.8,2430.7,3.22]
[1728404905715,1.21868,2430.8,2430.3,0.4153]
[1728404905716,0.41158,2430.7,2430.6,3.22]
[1728404905924,3.64099632,2430.7,2430.6,3.22]
[1728404906415,0.41158,2430.7,2430.6,3.22]
[1728404906611,0.41158,2430.7,2430.3,0.4153]
[1728404906612,0.41164,2430.4,2430.3,3.6353]
[1728404906917,3.64155108,2430.4,2430.3,4.04695]
[1728404908323,3.64155108,2430.4,2430.3,3.22]
[1728404908627,0.41164,2430.4,2430.3,3.22]
[1728404908816,0.41164,2430.4,2430.3,3.63165]
[1728404909012,3.64242384,2430.4,2430.3,3.22]
[1728404909217,0.41164,2430.4,2430.3,3.22]
[1728404909618,0.41164,2430.4,2430.3,3.63165]
[1728404909821,0.41164,2430.4,2430.3,3.22]
[1728404910021,4.1663296,2430.5,2430.3,3.22]
[1728404910222,3.23118599,2430.4,2430.3,3.63165]
[1728404910619,3.23118599,2430.4,2430.3,7.74605]
[1728404911020,3.23118599,2430.4,2430.3,3.63165]
[1728404911226,4.04091599,2430.5,2430.4,0.41164]
[1728404911622,0.80973,2430.5,2430.4,0.41164]
[1728404912220,0.41164,2430.4,2430.3,3.22]
[1728404912626,3.64384565,2430.4,2430.3,3.63164]
[1728404913026,3.23220565,2430.4,2430.3,3.63164]
[1728404914730,3.23220565,2430.5,2430.4,0.41164]
[1728404914928,3.23220565,2430.5,2430.4,8.03204]
[1728404915233,3.23220565,2430.6,2430.5,0.41162]
[1728404915529,3.23220565,2430.6,2430.5,4.52602]
[1728404916030,3.23220565,2430.7,2430.5,4.1144]
[1728404916235,3.23220565,2430.8,2430.6,6.8372]
[1728404916532,3.23220565,2430.8,2430.7,0.41158]
[1728404918527,3.64377565,2430.8,2430.7,0.41158]
[1728404919033,3.64377565,2430.8,2430.7,3.63158]
[1728404919237,3.23220565,2430.8,2430.7,3.63158]
[1728404919933,3.7682296,2431.0,2430.7,7.3336]
[1728404920129,4.1797796,2431.0,2430.9,3.63155]
[1728404920533,4.1797596,2431.0,2430.9,3.63155]
[1728404921034,4.0287,2431.1,2430.9,3.63155]
[1728404921035,8.2084596,2431.1,2431.0,0.41153]
[1728404921329,8.2084496,2431.1,2431.0,0.41153]
[1728404922233,7.7969296,2431.1,2431.0,0.41153]
[1728404922429,8.2084496,2431.1,2431.0,0.41153]
[1728404923030,7.7969296,2431.1,2430.9,3.22]
[1728404923230,0.41153,2431.0,2430.9,3.63154]
[1728404923441,7.7969296,2431.1,2430.9,3.22]
[1728404923632,0.41153,2431.0,2430.9,3.63154]
[1728404923932,4.0287,2431.1,2431.0,0.41153]
[1728404923933,4.44023,2431.1,2431.0,0.41153]
[1728404924130,1.23243,2431.1,2431.0,0.41153]
[1728404924329,0.8209,2431.1,2431.0,0.41153]
[1728404924527,1.23242,2431.1,2431.0,0.41153]
[1728404925040,0.41153,2431.0,2430.9,6.83934]
[1728404925238,1.23243,2431.1,2431.0,0.41153]
[1728404925427,1.23243,2431.1,2430.9,3.61934]
[1728404925428,0.41153,2431.0,2430.9,3.61934]
[1728404925626,0.41153,2431.0,2430.9,3.22]
[1728404925828,0.41155,2430.9,2430.8,3.22]
[1728404926526,0.83215,2430.9,2430.8,3.22]
[1728404927339,4.6003796,2430.9,2430.8,3.22]
[1728404928224,4.5342,2430.9,2430.6,3.22]
[1728404928431,4.1815527,2430.7,2430.6,3.22]
[1728404928640,0.41158,2430.7,2430.6,3.22]
[1728404928831,4.92678,2430.7,2430.6,2.5794]
[1728404929032,9.25258769,2430.7,2430.6,2.5794]
[1728404929227,4.92678,2430.7,2430.6,2.5794]
[1728404929931,4.5152,2430.7,2430.0,4.0233]
[1728404930234,0.41169,2430.1,2430.0,3.6339]
[1728404930436,3.77084811,2430.3,2430.0,3.6339]
[1728404930630,0.41169,2430.1,2430.0,3.22]
[1728404931335,0.81249,2430.2,2430.0,3.6317]
[1728404931537,0.81249,2430.2,2430.0,3.63169]
[1728404931737,0.41169,2430.1,2430.0,3.63169]
[1728404931937,0.41169,2430.1,2430.0,3.22]
[1728404932840,0.41169,2430.1,2430.0,3.6317]
[1728404933238,0.8109,2430.2,2430.0,3.6317]
[1728404933435,0.41167,2430.3,2430.2,0.41167]
[1728404933636,4.18248811,2430.4,2430.3,0.41165]
[1728404933832,0.41164,2430.4,2430.3,0.41165]
[1728404934032,3.77084811,2430.4,2430.3,0.41165]
[1728404934438,4.56794811,2430.5,2430.4,0.41164]
[1728404934634,4.56794811,2430.5,2430.4,3.63164]
[1728404935237,4.18094811,2430.5,2430.4,3.63164]
[1728404935435,3.77084811,2430.5,2430.4,3.63164]
[1728404935634,6.97864811,2430.6,2430.4,3.22]
[1728404935938,0.8054,2430.7,2430.6,0.4116]
[1728404936135,0.8054,2430.7,2430.6,3.6316]
[1728404936346,4.57624811,2430.7,2430.6,3.6316]
[1728404936545,4.98782811,2430.7,2430.6,3.6316]
[1728404936743,4.98782811,2430.7,2430.6,3.22]
[1728404936945,4.98782811,2430.7,2430.4,3.63163]
[1728404936946,0.41162,2430.5,2430.4,3.63163]
[1728404937547,4.18246811,2430.5,2430.4,3.22]
[1728404937950,4.18246811,2430.5,2430.2,3.6226]
[1728404937951,3.77084811,2430.5,2430.2,3.6226]
[1728404938243,4.18247811,2430.5,2430.4,0.41164]
[1728404938742,4.18247811,2430.5,2430.4,3.63164]
[1728404938743,3.77084811,2430.5,2430.4,3.63164]
[1728404940840,3.77084811,2430.5,2430.4,7.74604]
[1728404941034,3.77084811,2430.6,2430.5,0.41162]
[1728404941240,3.77084811,2430.6,2430.5,3.63162]
[1728404941444,3.77084811,2430.6,2430.5,7.74602]
[1728404941749,0.8054,2430.7,2430.6,0.4116]
[1728404941750,4.18344811,2430.7,2430.6,0.4116]
[1728404941948,4.18508415,2430.7,2430.6,0.4116]
[1728404942144,4.59681407,2430.7,2430.6,0.4116]
[1728404942334,4.59681407,2430.7,2430.5,3.22]
[1728404942335,0.4126,2430.7,2430.5,3.22]
[1728404942539,4.18430613,2430.6,2430.5,0.41162]
[1728404942739,0.4126,2430.7,2430.4,3.22]
[1728404942740,4.73840769,2430.7,2430.4,3.22]
[1728404942938,4.18459635,2430.5,2430.4,3.22]
[1728404943547,3.77297635,2430.5,2430.4,3.63164]
[1728404943947,4.18459635,2430.5,2430.4,3.63164]
[1728404944447,3.77297635,2430.5,2430.4,3.63164]
[1728404944748,4.18459635,2430.5,2430.4,3.63164]
[1728404944951,4.18459635,2430.5,2430.4,3.22]
[1728404945136,4.18459635,2430.5,2430.4,3.63164]
[1728404945342,3.77297635,2430.5,2430.4,3.63164]
[1728404946150,0.41162,2430.5,2430.4,3.63164]
[1728404946345,3.77297635,2430.6,2430.5,0.41162]
[1728404946540,4.73840769,2430.7,2430.5,3.63162]
[1728404946541,3.77297635,2430.7,2430.5,3.63162]
[1728404946742,6.98077635,2430.8,2430.7,0.41158]
[1728404947049,6.98077635,2430.8,2430.7,3.63158]
[1728404947943,3.77297635,2430.8,2430.7,3.63158]
[1728404948138,4.18452635,2431.0,2430.7,3.644]
[1728404948343,4.18452635,2431.0,2430.9,3.63155]
[1728404948644,4.18450635,2431.0,2430.9,3.63155]
[1728404948844,3.77297635,2431.0,2430.9,3.63155]
[1728404949643,4.18450635,2431.0,2430.9,3.63155]
[1728404950239,3.77297635,2431.0,2430.9,3.63155]
[1728404950444,4.18450635,2431.0,2430.9,3.63155]
[1728404950949,4.18450635,2431.0,2430.9,3.22]
[1728404951138,0.41155,2430.9,2430.8,3.22]
[1728404951540,4.18452635,2430.9,2430.8,3.22]
[1728404953153,4.18452635,2430.9,2430.6,0.4139]
[1728404953154,0.41158,2430.7,2430.6,0.4139]
[1728404953348,3.77297635,2430.7,2430.4,3.22]
[1728404953551,3.77297635,2430.6,2430.5,0.41161]
[1728404953855,4.57067635,2430.7,2430.5,0.41161]
[1728404954151,0.4116,2430.6,2430.5,0.41161]
[1728404954346,3.77297635,2430.6,2430.5,0.41161]
[1728404955446,3.772435,2430.7,2430.6,0.4116]
[1728404955648,6.980235,2430.9,2430.6,4.014]
[1728404955847,6.980235,2430.9,2430.8,3.63157]
[1728404956049,3.2078,2430.9,2430.8,3.63157]
[1728404956552,3.772435,2431.0,2430.8,7.3336]
[1728404956749,7.546285,2431.2,2430.9,3.2078]
[1728404956948,0.41152,2431.1,2431.0,3.22]
[1728404957147,0.41152,2431.1,2431.0,3.63153]
[1728404957453,3.772435,2431.2,2431.0,3.22]
[1728404957653,3.772435,2431.2,2431.1,0.41152]
[1728404958158,4.183945,2431.2,2431.1,0.41152]
[1728404958351,3.772435,2431.2,2431.1,0.41152]
[1728404958651,0.3923,2431.3,2431.2,0.4115]
[1728404958857,0.3923,2431.3,2431.2,6.8393]
[1728404959856,0.80378,2431.3,2431.2,6.8393]
[1728404960456,0.80378,2431.3,2431.2,6.4278]
[1728404960764,0.41153,2431.0,2430.9,3.22]
[1728404963049,3.772435,2431.0,2430.6,6.4278]
[1728404963355,0.41158,2430.7,2430.6,6.83939]
[1728404963965,1.24188,2430.8,2430.7,0.41158]
[1728404964255,0.41158,2430.7,2430.6,6.8394]
[1728404964652,0.81738,2430.7,2430.6,6.8394]
[1728404965654,0.4058,2430.7,2430.6,6.8394]
[1728404966757,0.4059,2430.8,2430.7,0.41158]
[1728404967257,0.4059,2430.8,2430.7,4.52518]
[1728404967761,3.772435,2431.0,2430.7,4.1136]
[1728404967955,0.83715,2431.0,2430.9,0.41155]
[1728404968554,0.4256,2431.0,2430.9,0.41155]
[1728404968750,0.83713,2431.0,2430.9,0.41155]
[1728404968957,0.4256,2431.0,2430.9,0.41155]
[1728404969163,0.4256,2431.0,2430.9,3.61935]
[1728404969555,4.183935,2431.3,2431.2,0.4115]
[1728404969752,4.59725322,2431.3,2431.2,0.4115]
[1728404969958,8.29855322,2431.3,2431.2,0.4115]
[1728404970557,8.71003322,2431.3,2431.2,0.4115]
[1728404970763,4.18575322,2431.3,2431.2,3.6315]
[1728404971066,0.82848,2431.3,2431.2,3.6315]
[1728404971363,0.417,2431.3,2431.2,3.6315]
[1728404971871,0.82848,2431.3,2431.2,3.6315]
[1728404972767,0.417,2431.3,2431.2,3.6315]
[1728404972966,0.82848,2431.3,2431.2,3.6315]
[1728404974678,0.417,2431.3,2431.2,3.6315]
[1728404974866,0.82848,2431.3,2431.2,3.6315]
[1728404975365,0.417,2431.3,2431.2,3.6315]
[1728404975566,0.82848,2431.3,2431.2,3.6315]
[1728404977676,0.417,2431.3,2431.2,3.6315]
[1728404978076,0.82848,2431.3,2431.2,3.6315]
[1728404980483,0.417,2431.3,2431.1,3.22]
[1728404980885,0.417,2431.3,2431.2,3.6315]
[1728404981881,0.417,2431.3,2431.2,6.8393]
[1728404984783,0.417,2431.3,2431.2,3.6315]
[1728404985289,0.82337,2431.5,2431.4,0.41147]
[1728404985489,1.22847,2431.5,2431.4,3.63147]
[1728404987790,1.22845,2431.5,2431.4,3.63147]
[1728404988378,0.817,2431.5,2431.4,3.63147]
[1728404988684,0.81655,2431.5,2431.4,3.63147]
[1728404988886,0.4051,2431.5,2431.4,3.63147]
[1728404989989,0.81655,2431.5,2431.4,3.63147]
[1728404990191,0.4051,2431.5,2431.4,3.63147]
[1728404990786,0.4051,2431.5,2431.3,0.4024]
[1728404990787,0.4051,2431.5,2431.3,3.6224]
[1728404991085,0.41147,2431.4,2431.2,3.61929]
[1728404991289,0.41151,2431.2,2431.1,0.41151]
[1728404991898,0.83581,2431.2,2431.1,0.41151]
[1728404992494,0.41152,2431.1,2431.0,0.4139]
[1728404992690,0.41153,2431.0,2430.9,3.22]
[1728404993298,0.80263,2431.0,2430.9,3.22]
[1728404993589,0.80263,2431.0,2430.6,3.5943]
[1728404993590,0.41158,2430.7,2430.6,3.2078]
[1728404993794,4.18274765,2430.7,2430.6,3.2078]
[1728404993995,8.29714765,2430.7,2430.6,3.2078]
[1728404994392,8.68234765,2430.7,2430.6,3.2078]
[1728404995994,0.79678,2430.7,2430.6,3.2078]
[1728404996202,4.56794765,2430.7,2430.6,3.2078]
[1728404997400,0.79678,2430.7,2430.6,3.2078]
[1728404997598,4.56794765,2430.7,2430.6,3.2078]
[1728404998000,5.77902209,2431.0,2430.6,3.2078]
[1728404998297,0.41158,2430.7,2430.6,3.2078]